fUSD/lending_fUSD_20240327
["ID","MTS","AMOUNT","RATE_DAILY","PERIOD"]
[320801807,1711561923413,-1090.78,0.00056986,120]
[320801808,1711561923423,-5693.99,0.00056986,120]
[320801809,1711561923432,-2767.8,0.00056986,120]
[320801810,1711561923442,-631.11,0.00056986,120]
[320801811,1711561923451,-500.0,0.00056986,120]
[320801812,1711561923461,-638.94,0.00056986,120]
[320801813,1711561923471,-1880.06,0.00056986,120]
[320801814,1711561923479,-3576.66,0.00056986,120]
[320801815,1711561923489,-1154.81,0.00056986,120]
[320801816,1711561923498,-597.69,0.00056986,120]
[320801817,1711561923507,-11680.99,0.00056986,120]
[320801818,1711561923516,-500.0,0.00056986,120]
[320801819,1711561923525,-1513.74,0.00056986,120]
[320801820,1711561923536,-500.0,0.00056986,120]
[320801821,1711561923546,-500.0,0.00056986,120]
[320801822,1711561923556,-4891.01,0.00056986,120]
[320801823,1711561923566,-820.32,0.00056986,120]
[320801824,1711561923576,-2266.19,0.00056986,120]
[320801825,1711561923587,-4319.88,0.00056986,120]
[320801826,1711561923596,-638.01,0.00056986,120]
[320801827,1711561923607,-1948.43,0.00056986,120]
[320801828,1711561923617,-594.89,0.00056986,120]
[320801829,1711561923626,-58191.63,0.00056986,120]
[320801830,1711561923636,-564.3701087,0.00056986,120]
[320801831,1711561923646,-500.0,0.00056986,120]
[320801832,1711561923656,-4872.06,0.00056986,120]
[320801833,1711561923666,-25819.15,0.00056986,120]
[320801834,1711561923676,-916.42,0.00056986,120]
[320801835,1711561923685,-672.12,0.00056986,120]
[320801836,1711561923695,-500.0,0.00056986,120]
[320801837,1711561923704,-500.0,0.00056986,120]
[320801838,1711561923713,-2822.64,0.00056986,120]
[320801839,1711561923723,-5739.01,0.00056986,120]
[320801840,1711561923733,-1599.36,0.00056986,120]
[320801841,1711561923743,-1773.91,0.00056986,120]
[320801842,1711561923753,-7896.21,0.00056986,120]
[320801843,1711561923762,-580.5,0.00056986,120]
[320801844,1711561923772,-500.0,0.00056986,120]
[320801845,1711561923782,-702.31,0.00056986,120]
[320801846,1711561923792,-4077.6,0.00056986,120]
[320801847,1711561923801,-962.02,0.00056986,120]
[320801848,1711561923811,-1910.86,0.00056986,120]
[320801849,1711561923821,-1981.61,0.00056986,120]
[320801850,1711561923830,-993.68,0.00056986,120]
[320801851,1711561923839,-1310.9,0.00056986,120]
[320801852,1711561923849,-5861.79,0.00056986,120]
[320801853,1711561923859,-861.74,0.00056986,120]
[320801854,1711561923868,-3868.28,0.00056986,120]
[320801855,1711561923879,-4602.46,0.00056986,120]
[320801856,1711561923890,-2663.41,0.00056986,120]
[320801857,1711561923899,-1041.92,0.00056986,120]
[320801858,1711561923910,-2285.5,0.00056986,120]
[320801859,1711561923919,-7201.79,0.00056986,120]
[320801860,1711561923929,-500.0,0.00056986,120]
[320801861,1711561923938,-2054.16,0.00056986,120]
[320801862,1711561923948,-577.29722724,0.00056986,120]
[320801863,1711561923957,-1431.94,0.00056986,120]
[320801864,1711561923966,-18909.02,0.00056986,120]
[320801865,1711561923976,-1528.43,0.00056986,120]
[320801866,1711561923986,-1715.09,0.00056986,120]
[320801867,1711561923996,-543.42,0.00056986,120]
[320801868,1711561924005,-836.18,0.00056986,120]
[320801869,1711561924014,-2529.3,0.00056986,120]
[320801870,1711561924024,-1204.05,0.00056986,120]
[320801871,1711561924033,-500.0,0.00056986,120]
[320801872,1711561924043,-882.15,0.00056986,120]
[320801873,1711561924053,-1890.07,0.00056986,120]
[320801874,1711561924063,-1395.77,0.00056986,120]
[320801875,1711561924072,-500.0,0.00056986,120]
[320801876,1711561924081,-500.0,0.00056986,120]
[320801877,1711561924090,-22066.4,0.00056986,120]
[320801878,1711561924099,-9133.29,0.00056986,120]
[320801879,1711561924108,-3276.54,0.00056986,120]
[320801880,1711561924117,-3779.21,0.00056986,120]
[320801881,1711561924127,-500.0,0.00056986,120]
[320801882,1711561924136,-505.39,0.00056986,120]
[320801883,1711561924145,-1407.53,0.00056986,120]
[320801884,1711561924154,-1780.21,0.00056986,120]
[320801885,1711561924163,-744.71,0.00056986,120]
[320801886,1711561924173,-3375.62,0.00056986,120]
[320801887,1711561924182,-500.0,0.00056986,120]
[320801888,1711561924191,-1245.33,0.00056986,120]
[320801889,1711561924200,-825.22,0.00056986,120]
[320801890,1711561924209,-500.0,0.00056986,120]
[320801891,1711561924218,-2499.0,0.00056986,120]
[320801892,1711561924228,-1139.82,0.00056986,120]
[320801893,1711561924237,-3390.46,0.00056986,120]
[320801894,1711561924246,-2297.82,0.00056986,120]
[320801895,1711561924255,-36215.98,0.00056986,120]
[320801896,1711561924264,-2115.9,0.00056986,120]
[320801897,1711561924274,-500.0,0.00056986,120]
[320801898,1711561924283,-504.0,0.00056986,120]
[320801899,1711561924293,-635.43,0.00056986,120]
[320801900,1711561924303,-509.72,0.00056986,7]
[320801901,1711561924313,-1985.21,0.00056986,120]
[320801902,1711561924323,-4093.44,0.00056986,120]
[320801903,1711561924332,-598.33,0.00056986,120]
[320801904,1711561924342,-3703.02,0.00056986,120]
[320801905,1711561924352,-3170.6,0.00056986,120]
[320801906,1711561924362,-4518.78,0.00056986,120]
[320801907,1711561924372,-816.34,0.00056986,120]
[320801908,1711561924383,-550.58,0.00056986,120]
[320801909,1711561924392,-500.0,0.00056986,120]
[320801910,1711561924401,-3365.42,0.00056986,120]
[320801911,1711561924410,-5597.96,0.00056986,120]
[320801912,1711561924420,-233.18,0.00056986,2]
[320801913,1711561924429,-1850.45,0.00056986,120]
[320801914,1711561924439,-500.0,0.00056986,120]
[320801915,1711561924450,-543.16,0.00056986,120]
[320801916,1711561924460,-1437.25,0.00056986,120]
[320801917,1711561924469,-500.0,0.00056986,120]
[320801918,1711561924479,-13261.96,0.00056986,120]
[320801919,1711561924488,-2460.7,0.00056986,120]
[320801920,1711561924498,-688.55,0.00056986,120]
[320801921,1711561924508,-1308.22,0.00056986,120]
[320801922,1711561924517,-1655.41,0.00056986,120]
[320801923,1711561924527,-500.0,0.00056986,120]
[320801924,1711561924537,-500.0,0.00056986,120]
[320801925,1711561924547,-606.26,0.00056986,120]
[320801926,1711561924557,-3292.56,0.00056986,120]
[320801927,1711561924566,-4771.81,0.00056986,120]
[320801928,1711561924576,-2911.12,0.00056986,120]
[320801929,1711561924585,-1591.58,0.00056986,120]
[320801930,1711561924595,-8314.67,0.00056986,21]
[320801931,1711561924604,-515.6,0.00056986,120]
[320801932,1711561924614,-1246.89,0.00056986,120]
[320801933,1711561924624,-1689.16,0.00056986,120]
[320801934,1711561924635,-500.0,0.00056986,120]
[320801935,1711561924644,-770.25,0.00056986,120]
[320801936,1711561924653,-8380.88,0.00056986,120]
[320801937,1711561924663,-614.46,0.00056986,120]
[320801938,1711561924672,-2319.97,0.00056986,120]
[320801939,1711561924681,-2989.36,0.00056986,120]
[320801940,1711561924692,-10959.62,0.00056986,120]
[320801941,1711561924701,-521.47,0.00056986,120]
[320801942,1711561924711,-2645.1,0.00056986,120]
[320801943,1711561924720,-758.38,0.00056986,120]
[320801944,1711561924730,-12744.26,0.00056986,120]
[320801945,1711561924739,-500.0,0.00056986,120]
[320801946,1711561924749,-11517.5,0.00056986,120]
[320801947,1711561924759,-2628.59,0.00056986,120]
[320801948,1711561924768,-1981.45,0.00056986,120]
[320801949,1711561924779,-500.0,0.00056986,120]
[320801950,1711561924788,-500.0,0.00056986,120]
[320801951,1711561924799,-500.0,0.00056986,120]
[320801952,1711561924808,-2618.9,0.00056986,120]
[320801953,1711561924817,-2635.65,0.00056986,120]
[320801954,1711561924828,-2440.72,0.00056986,120]
[320801955,1711561924838,-1641.2,0.00056986,120]
[320801956,1711561924848,-1422.66,0.00056986,120]
[320801957,1711561924857,-1953.26,0.00056986,120]
[320801958,1711561924871,-680.59,0.00056986,120]
[320801959,1711561924882,-500.0,0.00056986,120]
[320801960,1711561924892,-851.11,0.00056986,120]
[320801961,1711561924902,-516.23,0.00056986,120]
[320801962,1711561924914,-4524.02,0.00056986,120]
[320801963,1711561924923,-833.36,0.00056986,120]
[320801964,1711561924933,-500.0,0.00056986,120]
[320801965,1711561924943,-2147.51,0.00056986,120]
[320801966,1711561924952,-1826.97,0.00056986,120]
[320801967,1711561924964,-1200.4,0.00056986,120]
[320801968,1711561924973,-6977.94,0.00056986,120]
[320801969,1711561924983,-4994.03,0.00056986,120]
[320801970,1711561924993,-1042.58,0.00056986,120]
[320801971,1711561925002,-818.62,0.00056986,120]
[320801972,1711561925012,-1312.03,0.00056986,120]
[320801973,1711561925022,-1814.79,0.00056986,120]
[320801974,1711561925032,-500.0,0.00056986,120]
[320801975,1711561925052,-1730.09,0.00056986,120]
[320801976,1711561925065,-3092.64,0.00056986,120]
[320801977,1711561925077,-858.06,0.00056986,120]
[320801978,1711561925088,-500.0,0.00056986,120]
[320801979,1711561925099,-3331.35,0.00056986,120]
[320801980,1711561925109,-444.95115345,0.00056986,120]
[320801981,1711561925120,-1629.06,0.00056986,120]
[320801982,1711561925132,-1107.56,0.00056986,120]
[320801983,1711561925142,-1926.96,0.00056986,120]
[320801984,1711561925154,-5998.21,0.00056986,120]
[320801985,1711561925164,-1276.61,0.00056986,120]
[320801986,1711561925175,-500.0,0.00056986,120]
[320801987,1711561925185,-978.47,0.00056986,120]
[320801988,1711561925195,-1204.74,0.00056986,120]
[320801989,1711561925212,-500.0,0.00056986,120]
[320801990,1711561925222,-500.0,0.00056986,120]
[320801991,1711561925233,-1112.11,0.00056986,120]
[320801992,1711561925243,-500.0,0.00056986,120]
[320801993,1711561925254,-5147.59,0.00056986,120]
[320801994,1711561925264,-500.0,0.00056986,120]
[320801995,1711561925275,-1278.89,0.00056986,120]
[320801996,1711561925286,-1257.45,0.00056986,120]
[320801997,1711561925297,-5642.74,0.00056986,120]
[320801998,1711561925308,-207.0,0.0005699,15]
[320801999,1711561925318,-450.0,0.00057,57]
[320802000,1711561925332,-200.0,0.00057,30]
[320802001,1711561925342,-208.0,0.00057,30]
[320802002,1711561925352,-5000.0,0.00057,120]
[320802003,1711561925363,-208.0,0.00057,30]
[320802004,1711561925373,-10000.0,0.00057,14]
[320802005,1711561925385,-276.7501871,0.00057,120]
[320802006,1711561925396,-600.0,0.00057,58]
[320802007,1711561925406,-150.19866873,0.00057002,71]
[320802008,1711561925417,-5056.51492563,0.00057024,120]
[320802009,1711561925427,-2297.87115028,0.00057024,120]
[320802010,1711561925438,-745.54344938,0.00057024,120]
[320802011,1711561925448,-2121.19438282,0.00057024,120]
[320802012,1711561925459,-167.04288146,0.00057094,120]
[320802013,1711561925471,-156.920962,0.00057096,120]
[320802014,1711561925482,-150.0,0.000571,12]
[320802015,1711561925492,-3836.719838,0.00057108,30]
[320802016,1711561925502,-4795.899798,0.00057108,30]
[320802017,1711561925512,-959.179959,0.00057108,30]
[320802018,1711561925522,-959.17996,0.00057108,30]
[320802019,1711561925531,-959.179959,0.00057108,30]
[320802020,1711561925541,-2302.031903,0.00057108,30]
[320802021,1711561925749,-2302.031903,0.00057108,30]
[320802022,1711561925786,-2302.031903,0.00057108,30]
[320802023,1711561925796,-3917.009776,0.00057108,30]
[320802024,1711561925806,-647.989933,0.00057108,30]
[320802025,1711561925817,-1156.819569,0.00057108,30]
[320802026,1711561925828,-158.63652466,0.00057129,120]
[320802027,1711561925839,-500.0,0.00057137,120]
[320802028,1711561925849,-500.0,0.00057137,120]
[320802029,1711561925860,-150.0,0.000572,13]
[320802030,1711561925871,-501.32781995,0.00057204,30]
[320802031,1711561925886,-154.75091202,0.0005721,120]
[320802032,1711561925898,-9889.7488275,0.00057221,2]
[320802033,1711561925909,-27040.2738012,0.00057221,2]
[320802034,1711561925920,-80043.064073,0.00057221,2]
[320802035,1711561925931,-154.13724489,0.0005724,120]
[320802036,1711561925941,-1000.0,0.00057259,90]
[320802037,1711561925953,-500.0,0.0005726,120]
[320802038,1711561925964,-535.0,0.0005726,120]
[320802039,1711561925973,-500.0,0.0005726,120]
[320802040,1711561925983,-500.0,0.0005726,120]
[320802041,1711561925993,-500.0,0.0005726,120]
[320802042,1711561926003,-631.01,0.0005726,120]
[320802043,1711561926013,-500.0,0.0005726,120]
[320802044,1711561926023,-500.0,0.0005726,120]
[320802045,1711561926032,-530.38,0.0005726,120]
[320802046,1711561926043,-500.0,0.0005726,120]
[320802047,1711561926053,-500.0,0.0005726,120]
[320802048,1711561926063,-500.0,0.0005726,120]
[320802049,1711561926073,-500.0,0.0005726,120]
[320802050,1711561926084,-500.0,0.0005726,120]
[320802051,1711561926094,-517.87,0.0005726,120]
[320802052,1711561926103,-736.48,0.0005726,120]
[320802053,1711561926113,-500.0,0.0005726,120]
[320802054,1711561926123,-500.0,0.0005726,120]
[320802055,1711561926134,-500.0,0.0005726,120]
[320802056,1711561926143,-500.0,0.0005726,120]
[320802057,1711561926154,-1149.15,0.0005726,120]
[320802058,1711561926164,-683.71,0.0005726,120]
[320802059,1711561926173,-588.63,0.0005726,120]
[320802060,1711561926183,-1653.05,0.0005726,120]
[320802061,1711561926192,-721.85,0.0005726,120]
[320802062,1711561926202,-758.1,0.0005726,120]
[320802063,1711561926211,-751.34,0.0005726,120]
[320802064,1711561926220,-500.0,0.0005726,120]
[320802065,1711561926229,-1106.66,0.0005726,120]
[320802066,1711561926238,-500.0,0.0005726,120]
[320802067,1711561926248,-667.72,0.0005726,120]
[320802068,1711561926258,-546.53,0.0005726,120]
[320802069,1711561926268,-525.52,0.0005726,120]
[320802070,1711561926278,-500.0,0.0005726,120]
[320802071,1711561926288,-1650.28,0.0005726,120]
[320802072,1711561926300,-1208.64,0.0005726,120]
[320802073,1711561926310,-500.0,0.0005726,120]
[320802074,1711561926321,-1675.07,0.0005726,120]
[320802075,1711561926331,-500.0,0.0005726,60]
[320802076,1711561926350,-875.05,0.0005726,120]
[320802077,1711561926360,-458.06673831,0.0005726,120]
[320802078,1711561926370,-500.0,0.0005726,120]
[320802079,1711561926382,-896.37,0.0005726,120]
[320802080,1711561926393,-526.04,0.0005726,120]
[320802081,1711561926403,-774.53,0.0005726,120]
[320802082,1711561926413,-623.96,0.0005726,120]
[320802083,1711561926423,-1500.57,0.0005726,120]
[320802084,1711561926433,-500.0,0.0005726,120]
[320802085,1711561926443,-1293.46,0.0005726,120]
[320802086,1711561926454,-663.1,0.0005726,120]
[320802087,1711561926464,-507.38098285,0.0005726,120]
[320802088,1711561926474,-500.0,0.0005726,120]
[320802089,1711561926484,-591.57,0.0005726,120]
[320802090,1711561926495,-540.2,0.0005726,120]
[320802091,1711561926506,-500.0,0.0005726,120]
[320802092,1711561926516,-826.04,0.0005726,120]
[320802093,1711561926527,-802.7,0.0005726,120]
[320802094,1711561926536,-792.47,0.0005726,120]
[320802095,1711561926546,-551.8,0.0005726,120]
[320802096,1711561926556,-500.0,0.0005726,120]
[320802097,1711561926566,-507.03,0.0005726,120]
[320802098,1711561926576,-814.62,0.0005726,120]
[320802099,1711561926586,-519.12,0.0005726,120]
[320802100,1711561926597,-500.0,0.0005726,120]
[320802101,1711561926609,-553.94,0.0005726,120]
[320802102,1711561926620,-1363.26,0.0005726,120]
[320802103,1711561926632,-681.15,0.0005726,120]
[320802104,1711561926643,-1247.0,0.0005726,120]
[320802105,1711561926654,-828.0,0.0005726,120]
[320802106,1711561926665,-907.95,0.0005726,120]
[320802107,1711561926676,-691.03,0.0005726,120]
[320802108,1711561926686,-500.0,0.0005726,120]
[320802109,1711561926697,-500.0,0.0005726,120]
[320802110,1711561926708,-1943.45,0.0005726,120]
[320802111,1711561926718,-1363.72,0.0005726,120]
[320802112,1711561926728,-500.0,0.0005726,120]
[320802113,1711561926739,-1264.66,0.0005726,120]
[320802114,1711561926750,-518.11,0.0005726,120]
[320802115,1711561926761,-500.0,0.0005726,120]
[320802116,1711561926772,-785.6,0.0005726,120]
[320802117,1711561926782,-500.0,0.0005726,120]
[320802118,1711561926792,-500.0,0.0005726,120]
[320802119,1711561926803,-533.96,0.0005726,120]
[320802120,1711561926813,-610.76,0.0005726,120]
[320802121,1711561926824,-500.0,0.0005726,120]
[320802122,1711561926836,-601.27,0.0005726,120]
[320802123,1711561926847,-500.0,0.0005726,120]
[320802124,1711561926857,-619.35,0.0005726,120]
[320802125,1711561926869,-723.32,0.0005726,120]
[320802126,1711561926881,-658.94,0.0005726,30]
[320802127,1711561926892,-604.53,0.0005726,120]
[320802128,1711561926904,-500.0,0.0005726,120]
[320802129,1711561926914,-627.6,0.0005726,120]
[320802130,1711561926924,-541.49,0.0005726,120]
[320802131,1711561926934,-525.41,0.0005726,120]
[320802132,1711561926944,-500.0,0.0005726,120]
[320802133,1711561926954,-481.7034924,0.0005726,120]
[320802134,1711561926966,-1259.13,0.0005726,120]
[320802135,1711561926979,-500.0,0.0005726,120]
[320802136,1711561926988,-1285.86,0.0005726,120]
[320802137,1711561926999,-961.87,0.0005726,120]
[320802138,1711561927010,-1118.41,0.0005726,120]
[320802139,1711561927020,-500.0,0.0005726,120]
[320802140,1711561927030,-653.33,0.0005726,120]
[320802141,1711561927040,-500.0,0.0005726,120]
[320802142,1711561927051,-515.61,0.0005726,120]
[320802143,1711561927060,-500.0,0.0005726,120]
[320802144,1711561927070,-881.34,0.0005726,120]
[320802145,1711561927080,-594.96,0.0005726,120]
[320802146,1711561927090,-500.0,0.0005726,120]
[320802147,1711561927099,-635.55,0.0005726,120]
[320802148,1711561927109,-500.0,0.0005726,120]
[320802149,1711561927119,-500.0,0.0005726,120]
[320802150,1711561927131,-569.07,0.0005726,120]
[320802151,1711561927141,-513.81,0.0005726,120]
[320802152,1711561927150,-885.2,0.0005726,120]
[320802153,1711561927160,-507.05,0.0005726,120]
[320802154,1711561927169,-345.9,0.0005726,120]
[320802155,1711561927179,-500.0,0.0005726,120]
[320802156,1711561927188,-969.37,0.0005726,120]
[320802157,1711561927197,-500.0,0.0005726,120]
[320802158,1711561927207,-500.0,0.0005726,120]
[320802159,1711561927217,-712.96,0.0005726,120]
[320802160,1711561927227,-500.0,0.0005726,120]
[320802161,1711561927236,-607.67,0.0005726,120]
[320802162,1711561927247,-500.0,0.0005726,120]
[320802163,1711561927257,-500.0,0.0005726,120]
[320802164,1711561927266,-500.0,0.0005726,120]
[320802165,1711561927277,-572.09,0.0005726,120]
[320802166,1711561927286,-633.56,0.0005726,120]
[320802167,1711561927297,-1276.08,0.0005726,120]
[320802168,1711561927307,-743.04,0.0005726,120]
[320802169,1711561927317,-994.38,0.0005726,120]
[320802170,1711561927328,-1464.37,0.0005726,120]
[320802171,1711561927338,-1308.17,0.0005726,120]
[320802172,1711561927348,-428.29597429,0.0005726,120]
[320802173,1711561927358,-1966.83,0.0005726,120]
[320802174,1711561927368,-882.23,0.0005726,120]
[320802175,1711561927378,-1167.58,0.0005726,120]
[320802176,1711561927387,-500.0,0.0005726,120]
[320802177,1711561927397,-939.99,0.0005726,120]
[320802178,1711561927408,-1680.42,0.0005726,120]
[320802179,1711561927418,-654.45,0.0005726,120]
[320802180,1711561927427,-1090.78,0.0005726,120]
[320802181,1711561927438,-5693.99,0.0005726,120]
[320802182,1711561927448,-2767.8,0.0005726,120]
[320802183,1711561927459,-631.11,0.0005726,120]
[320802184,1711561927469,-596.50984371,0.0005726,120]
[320802185,1711561927479,-638.94,0.0005726,120]
[320802186,1711561927489,-1880.06,0.0005726,120]
[320802187,1711561927499,-1154.81,0.0005726,120]
[320802188,1711561927510,-597.69,0.0005726,120]
[320802189,1711561927520,-3576.66,0.0005726,120]
[320802190,1711561927530,-11680.99,0.0005726,120]
[320802191,1711561927540,-500.0,0.0005726,120]
[320802192,1711561927550,-1513.74,0.0005726,120]
[320802193,1711561927560,-500.0,0.0005726,120]
[320802194,1711561927570,-500.0,0.0005726,120]
[320802195,1711561927581,-4891.01,0.0005726,120]
[320802196,1711561927591,-820.32,0.0005726,120]
[320802197,1711561927602,-2266.19,0.0005726,120]
[320802198,1711561927613,-4319.88,0.0005726,120]
[320802199,1711561927624,-638.01,0.0005726,120]
[320802200,1711561927640,-1948.43,0.0005726,120]
[320802201,1711561927651,-594.89,0.0005726,120]
[320802202,1711561927661,-58191.63,0.0005726,120]
[320802203,1711561927673,-500.0,0.0005726,120]
[320802204,1711561927683,-4872.06,0.0005726,120]
[320802205,1711561927694,-25819.15,0.0005726,120]
[320802206,1711561927704,-916.42,0.0005726,120]
[320802207,1711561927714,-672.12,0.0005726,120]
[320802208,1711561927725,-500.0,0.0005726,120]
[320802209,1711561927736,-500.0,0.0005726,120]
[320802210,1711561927746,-2822.64,0.0005726,120]
[320802211,1711561927756,-5739.01,0.0005726,120]
[320802212,1711561927766,-1773.91,0.0005726,120]
[320802213,1711561927776,-1599.36,0.0005726,120]
[320802214,1711561927786,-7896.21,0.0005726,120]
[320802215,1711561927796,-580.5,0.0005726,120]
[320802216,1711561927807,-500.0,0.0005726,120]
[320802217,1711561927817,-702.31,0.0005726,120]
[320802218,1711561927828,-4077.6,0.0005726,120]
[320802219,1711561927839,-962.02,0.0005726,120]
[320802220,1711561927850,-1910.86,0.0005726,120]
[320802221,1711561927860,-1981.61,0.0005726,120]
[320802222,1711561927873,-993.68,0.0005726,120]
[320802223,1711561927886,-1310.9,0.0005726,120]
[320802224,1711561927895,-5861.79,0.0005726,120]
[320802225,1711561927905,-861.74,0.0005726,120]
[320802226,1711561927917,-3868.28,0.0005726,120]
[320802227,1711561927927,-4602.46,0.0005726,120]
[320802228,1711561927936,-2663.41,0.0005726,120]
[320802229,1711561927947,-1041.92,0.0005726,120]
[320802230,1711561927956,-2285.5,0.0005726,120]
[320802231,1711561927966,-7201.79,0.0005726,120]
[320802232,1711561927976,-500.0,0.0005726,120]
[320802233,1711561927985,-2054.16,0.0005726,120]
[320802234,1711561927995,-1431.94,0.0005726,120]
[320802235,1711561928004,-18909.02,0.0005726,120]
[320802236,1711561928014,-1528.43,0.0005726,120]
[320802237,1711561928024,-1715.09,0.0005726,120]
[320802238,1711561928035,-543.42,0.0005726,120]
[320802239,1711561928044,-836.18,0.0005726,120]
[320802240,1711561928053,-2529.3,0.0005726,120]
[320802241,1711561928063,-1204.05,0.0005726,120]
[320802242,1711561928072,-882.15,0.0005726,120]
[320802243,1711561928082,-500.0,0.0005726,120]
[320802244,1711561928091,-1890.07,0.0005726,120]
[320802245,1711561928101,-1395.77,0.0005726,120]
[320802246,1711561928111,-190.5,0.0005726,120]
[320802247,1711561928121,-500.0,0.0005726,120]
[320802248,1711561928132,-22066.4,0.0005726,120]
[320802249,1711561928141,-9133.29,0.0005726,120]
[320802250,1711561928150,-3276.54,0.0005726,120]
[320802251,1711561928159,-3779.21,0.0005726,120]
[320802252,1711561928169,-500.0,0.0005726,120]
[320802253,1711561928179,-505.39,0.0005726,120]
[320802254,1711561928189,-1407.53,0.0005726,120]
[320802255,1711561928198,-1780.21,0.0005726,120]
[320802256,1711561928208,-744.71,0.0005726,120]
[320802257,1711561928218,-3375.62,0.0005726,120]
[320802258,1711561928228,-500.0,0.0005726,120]
[320802259,1711561928237,-1245.33,0.0005726,120]
[320802260,1711561928247,-825.22,0.0005726,120]
[320802261,1711561928256,-416.19840652,0.0005726,120]
[320802262,1711561928266,-2499.0,0.0005726,120]
[320802263,1711561928276,-1139.82,0.0005726,120]
[320802264,1711561928286,-3390.46,0.0005726,120]
[320802265,1711561928296,-2297.82,0.0005726,120]
[320802266,1711561928305,-36215.98,0.0005726,120]
[320802267,1711561928314,-2115.9,0.0005726,120]
[320802268,1711561928324,-504.0,0.0005726,120]
[320802269,1711561928334,-500.0,0.0005726,120]
[320802270,1711561928411,-635.43,0.0005726,120]
[320802271,1711561928421,-509.72,0.0005726,7]
[320802272,1711561928431,-1985.21,0.0005726,120]
[320802273,1711561928441,-4093.44,0.0005726,120]
[320802274,1711561928450,-598.33,0.0005726,120]
[320802275,1711561928460,-3703.02,0.0005726,120]
[320802276,1711561928470,-3170.6,0.0005726,120]
[320802277,1711561928480,-4518.78,0.0005726,120]
[320802278,1711561928490,-816.34,0.0005726,120]
[320802279,1711561928500,-550.58,0.0005726,120]
[320802280,1711561928509,-500.0,0.0005726,120]
[320802281,1711561928519,-3365.42,0.0005726,120]
[320802282,1711561928530,-5597.96,0.0005726,120]
[320802283,1711561928540,-1850.45,0.0005726,120]
[320802284,1711561928551,-500.0,0.0005726,120]
[320802285,1711561928561,-543.16,0.0005726,120]
[320802286,1711561928570,-1437.25,0.0005726,120]
[320802287,1711561928580,-500.0,0.0005726,120]
[320802288,1711561928591,-13261.96,0.0005726,120]
[320802289,1711561928600,-2460.7,0.0005726,120]
[320802290,1711561928610,-688.55,0.0005726,120]
[320802291,1711561928619,-1308.22,0.0005726,120]
[320802292,1711561928631,-1655.41,0.0005726,120]
[320802293,1711561928641,-370.33890399,0.0005726,120]
[320802294,1711561928652,-500.0,0.0005726,120]
[320802295,1711561928662,-606.26,0.0005726,120]
[320802296,1711561928672,-3292.56,0.0005726,120]
[320802297,1711561928682,-4771.81,0.0005726,120]
[320802298,1711561928693,-2911.12,0.0005726,120]
[320802299,1711561928703,-1591.58,0.0005726,120]
[320802300,1711561928712,-8314.67,0.0005726,21]
[320802301,1711561928722,-1246.89,0.0005726,120]
[320802302,1711561928733,-515.6,0.0005726,120]
[320802303,1711561928743,-1689.16,0.0005726,120]
[320802304,1711561928753,-500.0,0.0005726,120]
[320802305,1711561928763,-770.25,0.0005726,120]
[320802306,1711561928773,-8380.88,0.0005726,120]